Workbook

Sheet Instructions

Sheet Calculations
A1: Read the instructions first | C1: 1. Enter:
B2: d1 | C2: 6 | D2: mm | E2: d2/d1 = | F2: =C3/C2 -> 6.666666667 | G2: Conditions for calculation:
B3: d2 | C3: 40 | D3: mm | E3: In case of incorrect settings either "Out of Range" or Setting incorrect" appears in red in the cells 1/E-F | G3: 1) 1.4 ˂ d2/d1 ˂ 7
B4: dm (optional) | C4: 40 | D4: mm | G4: 2) d2 ≤ 40 mm
B5: Cm | C5: 50 | D5: mm | G5: 3) Cm ≤ 70 mm
B6: a2 | C6: 100 | D6: mm | G6: 4) d2/d1 ≤ 2.4, d2 ≤ 32
A7: To calculate Cr and Cri | C7: 2. Press: "Ctrl m" | E7: 1. ff NRC | F7: Cylinder | G7: Cart | H7: Dcyl
A8: Real Covers | B8: Cr | C8: 44.4625 | D8: mm | E8: cm | H8: mm
B9: Cri | C9: 1.750492126 | D9: inch | E9: 0 | F9: No | G9: No
A10: By pressing the V-button the values are stored below. | C10: 3. Press:
B11: d1 | C11: d2 | D11: dm | E11: cm | F11: a2 | G11: Cr | H11: Cri
A12: Cases | B12: mm | C12: mm | D12: mm | E12: mm | F12: mm | G12: mm | H12: inch
A13: 1
A14: =A13+1 -> 2
A15: =A14+1 -> 3
A16: 4
A17: 5
A18: 6
A19: 7
A20: 8
A21: 9
A22: 10
A23: 11
A24: 12
A25: 13
A26: 14
A27: 15
A28: 16
A29: 17
A30: 18
A31: 19
A32: 20
A33: 21
A34: 22
A35: 23
A36: 24
A37: 25
A38: 26
A39: 27
A40: 28
A41: 29
A42: 30
A43: 31
A44: 32
A45: 33
A46: 34
A47: 35
A48: 36
A49: 37
A50: 38
A51: 39
A52: 40
A53: 41
A54: 42
A55: 43
A56: 44
A57: 45

Sheet Checked Cases A
C1: Accuracy: | F1: Total with ±0 mm | I1: Total with ±1 mm
E2: =H3-H2 -> 198 | F2: =E2/E3 -> 0.7857142857 | H2: =SUM(K94,K184,K275) -> 54 | I2: =H2/H3 -> 0.2142857143
B3: Cases A | D3: of | E3: 252 | F3: cases | G3: of | H3: 252 | I3: cases
A5: Case A1 5.5 ˂ d2/d1 ≤ 7
E6: for NRC 0, 9 to 13, 5 to 8
B7: d1 | C7: d2 | D7: dm | E7: cm | F7: a2 | G7: Cr | H7: Cri | J7: Cr meas. | K7: Cr Diff.
A8: Cases | B8: mm | C8: mm | D8: mm | E8: mm | F8: mm | G8: mm | H8: inch | I8: Cases
A9: 1 | B9: 6 | C9: 40 | D9: 40 | E9: 23 | F9: 40 | G9: 20.38639592 | H9: 0.8026140126 | I9: 1 | J9: 20 | K9: =G9-J9 -> 0.38639592
A10: =A9+1 -> 2 | B10: 6 | C10: 40 | D10: 40 | E10: 34 | F10: 40 | G10: 32.21653468 | H10: 1.268367507 | I10: =I9+1 -> 2 | J10: 32 | K10: =G10-J10 -> 0.2165346776
A11: =A10+1 -> 3 | B11: 6 | C11: 40 | D11: 40 | E11: 45 | F11: 40 | G11: 44.28883633 | H11: 1.743654974 | I11: =I10+1 -> 3 | J11: 44 | K11: 0.288836328
A12: 4 | B12: 6 | C12: 40 | D12: 40 | E12: 56 | F12: 40 | G12: 57.11073356 | H12: 2.248454077 | I12: 4 | J12: 57 | K12: 0.1107335568
A13: 5 | B13: 6 | C13: 40 | D13: 40 | E13: 23 | F13: 50 | G13: 19.46345 | H13: 0.7662775591 | I13: 5 | J13: 20 | K13: -0.53655
A14: 6 | B14: 6 | C14: 40 | D14: 40 | E14: 35 | F14: 50 | G14: 31.7843375 | H14: 1.25135187 | I14: 6 | J14: 32 | K14: -0.2156625
A15: 7 | B15: 6 | C15: 40 | D15: 40 | E15: 46 | F15: 50 | G15: 43.540025 | H15: 1.714174213 | I15: 7 | J15: 44 | K15: -0.459975
A16: 8 | B16: 6 | C16: 40 | D16: 40 | E16: 58 | F16: 50 | G16: 56.933425 | H16: 2.241473425 | I16: 8 | J16: 57 | K16: -0.066575
A17: 9 | B17: 6 | C17: 40 | D17: 40 | E17: 24 | F17: 70 | G17: 19.608078 | H17: 0.7719715748 | I17: 9 | J17: 20 | K17: -0.391922
A18: 10 | B18: 6 | C18: 40 | D18: 40 | E18: 36 | F18: 70 | G18: 31.5924777 | H18: 1.243798335 | I18: 10 | J18: 32 | K18: -0.4075223
A19: 11 | B19: 6 | C19: 40 | D19: 40 | E19: 48 | F19: 70 | G19: 43.919267 | H19: 1.729105 | I19: 11 | J19: 44 | K19: -0.080733
A20: 12 | B20: 6 | C20: 40 | D20: 40 | E20: 60 | F20: 70 | G20: 56.8402246 | H20: 2.237804118 | I20: 12 | J20: 57 | K20: -0.1597754
A21: 13 | B21: 6 | C21: 40 | D21: 34 | E21: 26 | F21: 100 | G21: 20.9465 | H21: 0.8246653543 | I21: 13 | J21: 20 | K21: 0.9465
A22: 14 | B22: 6 | C22: 40 | D22: 40 | E22: 38 | F22: 100 | G22: 32.7758 | H22: 1.290385827 | I22: 14 | J22: 32 | K22: 0.7758
A23: 15 | B23: 6 | C23: 40 | D23: 40 | E23: 50 | F23: 100 | G23: 44.4625 | H23: 1.750492126 | I23: 15 | J23: 44 | K23: 0.4625
A24: 16 | B24: 6 | C24: 40 | D24: 40 | E24: 62 | F24: 100 | G24: 56.7903 | H24: 2.235838583 | I24: 16 | J24: 57 | K24: -0.2097
A25: 17 | B25: 6 | C25: 40 | D25: 23 | E25: 25 | F25: 125 | G25: 19.964875 | H25: 0.7860187008 | I25: 17 | J25: 20 | K25: -0.035125
A26: 18 | B26: 6 | C26: 40 | D26: 28 | E26: 37 | F26: 125 | G26: 31.69841406 | H26: 1.247969058 | I26: 18 | J26: 32 | K26: -0.3015859375
A27: 19 | B27: 6 | C27: 40 | D27: 32 | E27: 50 | F27: 125 | G27: 43.92998438 | H27: 1.729526944 | I27: 19 | J27: 44 | K27: -0.070015625
A28: 20 | B28: 6 | C28: 40 | D28: 38 | E28: 64 | F28: 125 | G28: 57.85257813 | H28: 2.277660556 | I28: 20 | J28: 57 | K28: 0.852578125
A29: 21 | B29: 6 | C29: 40 | D29: 17 | E29: 24 | F29: 150 | G29: 19.50115 | H29: 0.767761811 | I29: 21 | J29: 20 | K29: -0.49885
A30: 22 | B30: 6 | C30: 40 | D30: 20 | E30: 37 | F30: 150 | G30: 31.8910625 | H30: 1.255553642 | I30: 22 | J30: 32 | K30: -0.1089375
A31: 23 | B31: 6 | C31: 40 | D31: 25 | E31: 50 | F31: 150 | G31: 43.811675 | H31: 1.724869094 | I31: 23 | J31: 44 | K31: -0.188325
A32: 24 | B32: 6 | C32: 40 | D32: 29 | E32: 63 | F32: 150 | G32: 56.393775 | H32: 2.220227362 | I32: 24 | J32: 57 | K32: -0.606225
A33: 25 | B33: 6 | C33: 40 | D33: 10 | E33: 22 | F33: 200 | G33: 20.1274 | H33: 0.7924173228 | I33: 25 | J33: 20 | K33: 0.1274
A34: 26 | B34: 6 | C34: 40 | D34: 13 | E34: 37 | F34: 200 | G34: 32.0428 | H34: 1.261527559 | I34: 26 | J34: 32 | K34: 0.0428
A35: 27 | B35: 6 | C35: 40 | D35: 17 | E35: 50 | F35: 200 | G35: 44.0478 | H35: 1.734165354 | I35: 27 | J35: 44 | K35: 0.0478
A36: 28 | B36: 6 | C36: 40 | D36: 19 | E36: 62 | F36: 200 | G36: 55.082 | H36: 2.168582677 | I36: 28 | J36: 55 | K36: 0.082
A37: 29 | B37: 6 | C37: 40 | D37: 40 | E37: 23 | F37: 40 | G37: 20.38639592 | H37: 0.8026140126 | I37: 29 | J37: 20 | K37: 0.38639592
A38: 30 | B38: 6 | C38: 40 | D38: 40 | E38: 34 | F38: 40 | G38: 32.21653468 | H38: 1.268367507 | I38: 30 | J38: 32 | K38: 0.2165346776
A39: 31 | B39: 6 | C39: 40 | D39: 40 | E39: 45 | F39: 40 | G39: 44.16698816 | H39: 1.738857802 | I39: 31 | J39: 44 | K39: 0.1669881592
A40: 32 | B40: 6 | C40: 40 | D40: 40 | E40: 57 | F40: 40 | G40: 57.34085227 | H40: 2.257513869 | I40: 32 | J40: 57 | K40: 0.3408522736
A41: 33 | B41: 6 | C41: 40 | D41: 40 | E41: 23 | F41: 50 | G41: 19.46345 | H41: 0.7662775591 | I41: 33 | J41: 20 | K41: -0.53655
A42: 34 | B42: 6 | C42: 40 | D42: 40 | E42: 35 | F42: 50 | G42: 31.7843375 | H42: 1.25135187 | I42: 34 | J42: 32 | K42: -0.2156625
A43: 35 | B43: 6 | C43: 40 | D43: 40 | E43: 46 | F43: 50 | G43: 43.6147075 | H43: 1.717114469 | I43: 35 | J43: 44 | K43: -0.3852925
A44: 36 | B44: 6 | C44: 40 | D44: 40 | E44: 58 | F44: 50 | G44: 56.412175 | H44: 2.220951772 | I44: 36 | J44: 57 | K44: -0.587825
A45: 37 | B45: 6 | C45: 40 | D45: 40 | E45: 24 | F45: 70 | G45: 19.608078 | H45: 0.7719715748 | I45: 37 | J45: 20 | K45: -0.391922
A46: 38 | B46: 6 | C46: 40 | D46: 40 | E46: 36 | F46: 70 | G46: 31.5924777 | H46: 1.243798335 | I46: 38 | J46: 32 | K46: -0.4075223
A47: 39 | B47: 6 | C47: 40 | D47: 40 | E47: 48 | F47: 70 | G47: 44.2252749 | H47: 1.741152555 | I47: 39 | J47: 44 | K47: 0.2252749
A48: 40 | B48: 6 | C48: 40 | D48: 40 | E48: 60 | F48: 70 | G48: 56.950687 | H48: 2.242153031 | I48: 40 | J48: 57 | K48: -0.049313
A49: 41 | B49: 6 | C49: 40 | D49: 35 | E49: 26 | F49: 100 | G49: 20.9465 | H49: 0.8246653543 | I49: 41 | J49: 20 | K49: 0.9465
A50: 42 | B50: 6 | C50: 40 | D50: 37 | E50: 38 | F50: 100 | G50: 32.7758 | H50: 1.290385827 | I50: 42 | J50: 32 | K50: 0.7758
A51: 43 | B51: 6 | C51: 40 | D51: 35 | E51: 49 | F51: 100 | G51: 44.10199 | H51: 1.736298819 | I51: 43 | J51: 44 | K51: 0.10199
A52: 44 | B52: 6 | C52: 40 | D52: 37 | E52: 61.5 | F52: 100 | G52: 57.74281 | H52: 2.273338976 | I52: 44 | J52: 57 | K52: 0.74281
A53: 45 | B53: 6 | C53: 40 | D53: 22 | E53: 25 | F53: 125 | G53: 19.964875 | H53: 0.7860187008 | I53: 45 | J53: 20 | K53: -0.035125
A54: 46 | B54: 6 | C54: 40 | D54: 26 | E54: 37 | F54: 125 | G54: 31.69841406 | H54: 1.247969058 | I54: 46 | J54: 32 | K54: -0.3015859375
A55: 47 | B55: 6 | C55: 40 | D55: 27 | E55: 49 | F55: 125 | G55: 43.85204219 | H55: 1.726458354 | I55: 47 | J55: 44 | K55: -0.1479578125
A56: 48 | B56: 6 | C56: 40 | D56: 28 | E56: 60 | F56: 125 | G56: 56.49953438 | H56: 2.224391117 | I56: 48 | J56: 57 | K56: -0.500465625
A57: 49 | B57: 6 | C57: 40 | D57: 17 | E57: 24 | F57: 150 | G57: 19.50115 | H57: 0.767761811 | I57: 49 | J57: 20 | K57: -0.49885
A58: 50 | B58: 6 | C58: 40 | D58: 20 | E58: 37 | F58: 150 | G58: 31.8910625 | H58: 1.255553642 | I58: 50 | J58: 32 | K58: -0.1089375
A59: 51 | B59: 6 | C59: 40 | D59: 22 | E59: 49 | F59: 150 | G59: 44.0370725 | H59: 1.733743012 | I59: 51 | J59: 44 | K59: 0.0370725
A60: 52 | B60: 6 | C60: 40 | D60: 23 | E60: 60 | F60: 150 | G60: 57.027455 | H60: 2.245175394 | I60: 52 | J60: 57 | K60: 0.027455
A61: 53 | B61: 6 | C61: 40 | D61: 10 | E61: 22 | F61: 200 | G61: 20.1274 | H61: 0.7924173228 | I61: 53 | J61: 20 | K61: 0.1274
A62: 54 | B62: 6 | C62: 40 | D62: 12 | E62: 37 | F62: 200 | G62: 32.0428 | H62: 1.261527559 | I62: 54 | J62: 32 | K62: 0.0428
A63: 55 | B63: 6 | C63: 40 | D63: 14 | E63: 48 | F63: 200 | G63: 44.00418 | H63: 1.732448031 | I63: 55 | J63: 44 | K63: 0.00418
A64: 56 | B64: 6 | C64: 40 | D64: 16 | E64: 60 | F64: 200 | G64: 57.02766 | H64: 2.245183465 | I64: 56 | J64: 57 | K64: 0.02766
A65: 57 | B65: 6 | C65: 40 | D65: 40 | E65: 24 | F65: 40 | G65: 20.11957148 | H65: 0.7921091134 | I65: 57 | J65: 20 | K65: 0.11957148
A66: 58 | B66: 6 | C66: 40 | D66: 40 | E66: 36 | F66: 40 | G66: 31.80299265 | H66: 1.252086325 | I66: 58 | J66: 32 | K66: -0.1970073456
A67: 59 | B67: 6 | C67: 40 | D67: 40 | E67: 48 | F67: 40 | G67: 43.85996666 | H67: 1.726770341 | I67: 59 | J67: 44 | K67: -0.1400333424
A68: 60 | B68: 6 | C68: 40 | D68: 40 | E68: 61.5 | F68: 40 | G68: 56.75243734 | H68: 2.234347927 | I68: 60 | J68: 57 | K68: -0.2475626592
A69: 61 | B69: 6 | C69: 40 | D69: 40 | E69: 25 | F69: 50 | G69: 21.182175 | H69: 0.8339438976 | I69: 61 | J69: 21 | K69: 0.182175
A70: 62 | B70: 6 | C70: 40 | D70: 40 | E70: 37 | F70: 50 | G70: 32.299225 | H70: 1.271623031 | I70: 62 | J70: 32 | K70: 0.299225
A71: 63 | B71: 6 | C71: 40 | D71: 40 | E71: 49 | F71: 50 | G71: 44.237345 | H71: 1.741627756 | I71: 63 | J71: 44 | K71: 0.237345
A72: 64 | B72: 6 | C72: 40 | D72: 40 | E72: 62 | F72: 50 | G72: 57.21205 | H72: 2.252442913 | I72: 64 | J72: 57 | K72: 0.21205
A73: 65 | B73: 6 | C73: 40 | D73: 35 | E73: 24 | F73: 70 | G73: 20.294507 | H73: 0.7989963386 | I73: 65 | J73: 21 | K73: -0.705493
A74: 66 | B74: 6 | C74: 40 | D74: 34 | E74: 37 | F74: 70 | G74: 32.1161778 | H74: 1.264416449 | I74: 66 | J74: 32 | K74: =G74-J74 -> 0.1161778
A75: =A74+1 -> 67 | B75: 6 | C75: 40 | D75: 34 | E75: 49 | F75: 70 | G75: 44.0543694 | H75: 1.734423992 | I75: =I74+1 -> 67 | J75: 44 | K75: 0.0543694
A76: 68 | B76: 6 | C76: 40 | D76: 35 | E76: 62 | F76: 70 | G76: 57.4954736 | H76: 2.263601323 | I76: 68 | J76: 57 | K76: 0.4954736
A77: 69 | B77: 6 | C77: 40 | D77: 25 | E77: 25 | F77: 100 | G77: 21.534 | H77: 0.8477952756 | I77: 69 | J77: 21 | K77: 0.534
A78: 70 | B78: 6 | C78: 40 | D78: 24 | E78: 36 | F78: 100 | G78: 31.526 | H78: 1.241181102 | I78: 70 | J78: 32 | K78: -0.474
A79: 71 | B79: 6 | C79: 40 | D79: 25 | E79: 48 | F79: 100 | G79: 43.59218 | H79: 1.716227559 | I79: 71 | J79: 44 | K79: -0.40782
A80: 72 | B80: 6 | C80: 40 | D80: 26 | E80: 60 | F80: 100 | G80: 56.2965 | H80: 2.216397638 | I80: 72 | J80: 57 | K80: -0.7035
A81: 73 | B81: 6 | C81: 40 | D81: 17 | E81: 23 | F81: 125 | G81: 19.79865625 | H81: 0.7794746555 | I81: 73 | J81: 20 | K81: -0.20134375
A82: 74 | B82: 6 | C82: 40 | D82: 18 | E82: 36 | F82: 125 | G82: 32.23846875 | H82: 1.269231053 | I82: 74 | J82: 32 | K82: 0.23846875
A83: 75 | B83: 6 | C83: 40 | D83: 19 | E83: 48 | F83: 125 | G83: 44.33917187 | H83: 1.745636688 | I83: 75 | J83: 44 | K83: 0.339171875
A84: 76 | B84: 6 | C84: 40 | D84: 20 | E84: 60 | F84: 125 | G84: 56.97551562 | H84: 2.243130536 | I84: 76 | J84: 57 | K84: -0.024484375
A85: 77 | B85: 6 | C85: 40 | D85: 14 | E85: 23 | F85: 150 | G85: 20.122475 | H85: 0.7922234252 | I85: 77 | J85: 20 | K85: 0.122475
A86: 78 | B86: 6 | C86: 40 | D86: 15 | E86: 35 | F86: 150 | G86: 32.039525 | H86: 1.261398622 | I86: 78 | J86: 32 | K86: 0.039525
A87: 79 | B87: 6 | C87: 40 | D87: 16 | E87: 47 | F87: 150 | G87: 43.925555 | H87: 1.729352559 | I87: 79 | J87: 44 | K87: -0.074445
A88: 80 | B88: 6 | C88: 40 | D88: 18 | E88: 60 | F88: 150 | G88: 57.342 | H88: 2.257559055 | I88: 80 | J88: 57 | K88: 0.342
A89: 81 | B89: 6 | C89: 40 | D89: 8 | E89: 22 | F89: 200 | G89: 19.9476 | H89: 0.7853385827 | I89: 81 | J89: 20 | K89: -0.0524
A90: 82 | B90: 6 | C90: 40 | D90: 9 | E90: 34 | F90: 200 | G90: 31.975 | H90: 1.258858268 | I90: 82 | J90: 32 | K90: -0.025
A91: 83 | B91: 6 | C91: 40 | D91: 11 | E91: 48 | F91: 200 | G91: 43.99552 | H91: 1.732107087 | I91: 83 | J91: 44 | K91: -0.00448
A92: 84 | B92: 6 | C92: 40 | D92: 12 | E92: 61 | F92: 200 | G92: 56.9262 | H92: 2.241188976 | I92: 84 | J92: 57 | K92: -0.0738
J94: ± 1 mm | K94: 14
A95: Case A2 3.5 ˂ d2/d1 ≤ 5.5
E96: for NRC 0, 9 to 13, 5 to 8
A97: Column1 | B97: d1 | C97: d2 | D97: dm | E97: cm | F97: a2 | G97: Cr | H97: Cri | I97: Column2 | J97: Cr meas. | K97: Cr Diff.
A98: Cases | B98: mm | C98: mm | D98: mm | E98: mm | F98: mm | G98: mm | H98: inch | I98: Cases
A99: 1 | B99: 8 | C99: 34 | D99: 40 | E99: 24 | F99: 34 | G99: 20.21815154 | H99: 0.7959902182 | I99: 1 | J99: 20 | K99: =G99-J99 -> 0.2181515424
A100: =A99+1 -> 2 | B100: 8 | C100: 34 | D100: 40 | E100: 35 | F100: 34 | G100: 32.20886868 | H100: 1.268065696 | I100: =I99+1 -> 2 | J100: 32 | K100: =G100-J100 -> 0.2088686768
A101: =A100+1 -> 3 | B101: 8 | C101: 34 | D101: 40 | E101: 46 | F101: 34 | G101: 43.89012909 | H101: 1.727957838 | I101: =I100+1 -> 3 | J101: 44 | K101: -0.1098709072
A102: 4 | B102: 8 | C102: 34 | D102: 40 | E102: 58 | F102: 34 | G102: 57.25167104 | H102: 2.254002797 | I102: 4 | J102: 57 | K102: 0.25167104
A103: 5 | B103: 8 | C103: 34 | D103: 40 | E103: 24 | F103: 50 | G103: 19.55233 | H103: 0.7697767717 | I103: 5 | J103: 20 | K103: -0.44767
A104: 6 | B104: 8 | C104: 34 | D104: 40 | E104: 36 | F104: 50 | G104: 31.491155 | H104: 1.239809252 | I104: 6 | J104: 32 | K104: -0.508845
A105: 7 | B105: 8 | C105: 34 | D105: 40 | E105: 48 | F105: 50 | G105: 44.203635 | H105: 1.740300591 | I105: 7 | J105: 44 | K105: 0.203635
A106: 8 | B106: 8 | C106: 34 | D106: 40 | E106: 60 | F106: 50 | G106: 56.6964 | H106: 2.232141732 | I106: 8 | J106: 57 | K106: -0.3036
A107: 9 | B107: 8 | C107: 34 | D107: 40 | E107: 25 | F107: 70 | G107: 20.2720716 | H107: 0.7981130551 | I107: 9 | J107: 20 | K107: 0.2720716
A108: 10 | B108: 8 | C108: 34 | D108: 40 | E108: 38 | F108: 70 | G108: 32.4525946 | H108: 1.277661205 | I108: 10 | J108: 32 | K108: 0.4525946
A109: 11 | B109: 8 | C109: 34 | D109: 40 | E109: 49 | F109: 70 | G109: 43.8845386 | H109: 1.72773774 | I109: 11 | J109: 44 | K109: -0.1154614
A110: 12 | B110: 8 | C110: 34 | D110: 40 | E110: 62 | F110: 70 | G110: 56.69034 | H110: 2.23190315 | I110: 12 | J110: 57 | K110: -0.30966
A111: 13 | B111: 8 | C111: 34 | D111: 28 | E111: 24 | F111: 100 | G111: 19.71587 | H111: 0.7762153543 | I111: 13 | J111: 20 | K111: -0.28413
A112: 14 | B112: 8 | C112: 34 | D112: 32 | E112: 37 | F112: 100 | G112: 31.57161 | H112: 1.242976772 | I112: 14 | J112: 32 | K112: -0.42839
A113: 15 | B113: 8 | C113: 34 | D113: 37 | E113: 50 | F113: 100 | G113: 44.22182 | H113: 1.741016535 | I113: 15 | J113: 44 | K113: 0.22182
A114: 16 | B114: 8 | C114: 34 | D114: 40 | E114: 64 | F114: 100 | G114: 57.6128 | H114: 2.268220472 | I114: 16 | J114: 57 | K114: 0.6128
A115: 17 | B115: 8 | C115: 34 | D115: 20 | E115: 24 | F115: 125 | G115: 20.58010937 | H115: 0.8102405266 | I115: 17 | J115: 20 | K115: 0.580109375
A116: 18 | B116: 8 | C116: 34 | D116: 25 | E116: 37 | F116: 125 | G116: 32.54885625 | H116: 1.281451033 | I116: 18 | J116: 32 | K116: 0.54885625
A117: 19 | B117: 8 | C117: 34 | D117: 28 | E117: 49 | F117: 125 | G117: 43.53429063 | H117: 1.71394845 | I117: 19 | J117: 44 | K117: -0.465709375
A118: 20 | B118: 8 | C118: 34 | D118: 32 | E118: 63 | F118: 125 | G118: 56.91928125 | H118: 2.240916585 | I118: 20 | J118: 57 | K118: -0.08071875
A119: 21 | B119: 8 | C119: 34 | D119: 16 | E119: 22 | F119: 150 | G119: 19.60507 | H119: 0.7718531496 | I119: 21 | J119: 20 | K119: -0.39493
A120: 22 | B120: 8 | C120: 34 | D120: 18 | E120: 35 | F120: 150 | G120: 31.685265 | H120: 1.247451378 | I120: 22 | J120: 32 | K120: -0.314735
A121: 23 | B121: 8 | C121: 34 | D121: 23 | E121: 49 | F121: 150 | G121: 44.301705 | H121: 1.744161614 | I121: 23 | J121: 44 | K121: 0.301705
A122: 24 | B122: 8 | C122: 34 | D122: 26 | E122: 62 | F122: 150 | G122: 56.7717 | H122: 2.235106299 | I122: 24 | J122: 57 | K122: -0.2283
A123: 25 | B123: 8 | C123: 34 | D123: 11 | E123: 21 | F123: 200 | G123: 20.05438 | H123: 0.7895425197 | I123: 25 | J123: 20 | K123: 0.05438
A124: 26 | B124: 8 | C124: 34 | D124: 13 | E124: 35 | F124: 200 | G124: 32.03902 | H124: 1.26137874 | I124: 26 | J124: 32 | K124: 0.03902
A125: 27 | B125: 8 | C125: 34 | D125: 16 | E125: 47 | F125: 200 | G125: 43.95944 | H125: 1.730686614 | I125: 27 | J125: 44 | K125: -0.04056
A126: 28 | B126: 8 | C126: 34 | D126: 18 | E126: 61 | F126: 200 | G126: 57.0556 | H126: 2.246283465 | I126: 28 | J126: 57 | K126: 0.0556
A127: 29 | B127: 8 | C127: 34 | D127: 40 | E127: 24 | F127: 34 | G127: 19.96280411 | H127: 0.7859371698 | I127: 29 | J127: 20 | K127: -0.037195888
A128: 30 | B128: 8 | C128: 34 | D128: 40 | E128: 35 | F128: 34 | G128: 32.01464822 | H128: 1.260419221 | I128: 30 | J128: 32 | K128: 0.014648224
A129: 31 | B129: 8 | C129: 34 | D129: 40 | E129: 47 | F129: 34 | G129: 44.25607166 | H129: 1.742365026 | I129: 31 | J129: 44 | K129: 0.256071656
A130: 32 | B130: 8 | C130: 34 | D130: 40 | E130: 58 | F130: 34 | G130: 57.11673912 | H130: 2.248690517 | I130: 32 | J130: 57 | K130: 0.1167391248
A131: 33 | B131: 8 | C131: 34 | D131: 40 | E131: 25 | F131: 50 | G131: 20.15633 | H131: 0.7935562992 | I131: 33 | J131: 20 | K131: 0.15633
A132: 34 | B132: 8 | C132: 34 | D132: 40 | E132: 36 | F132: 50 | G132: 31.6241 | H132: 1.245043307 | I132: 34 | J132: 32 | K132: -0.3759
A133: 35 | B133: 8 | C133: 34 | D133: 40 | E133: 47 | F133: 50 | G133: 43.298105 | H133: 1.704649803 | I133: 35 | J133: 44 | K133: -0.701895
A134: 36 | B134: 8 | C134: 34 | D134: 40 | E134: 59 | F134: 50 | G134: 56.583225 | H134: 2.227686024 | I134: 36 | J134: 57 | K134: -0.416775
A135: 37 | B135: 8 | C135: 34 | D135: 40 | E135: 25 | F135: 70 | G135: 19.77101 | H135: 0.7783862205 | I135: 37 | J135: 20 | K135: -0.22899
A136: 38 | B136: 8 | C136: 34 | D136: 40 | E136: 38 | F136: 70 | G136: 32.872764 | H136: 1.294203307 | I136: 38 | J136: 32 | K136: 0.872764
A137: 39 | B137: 8 | C137: 34 | D137: 40 | E137: 49 | F137: 70 | G137: 44.673915 | H137: 1.758815551 | I137: 39 | J137: 44 | K137: 0.673915
A138: 40 | B138: 8 | C138: 34 | D138: 40 | E138: 61 | F138: 70 | G138: 57.5725926 | H138: 2.266637504 | I138: 40 | J138: 57 | K138: 0.5725926
A139: 41 | B139: 8 | C139: 34 | D139: 28 | E139: 25 | F139: 100 | G139: 20.15021 | H139: 0.7933153543 | I139: 41 | J139: 20 | K139: 0.15021
A140: 42 | B140: 8 | C140: 34 | D140: 31 | E140: 36 | F140: 100 | G140: 31.1974 | H140: 1.228244094 | I140: 42 | J140: 32 | K140: -0.8026
A141: 43 | B141: 8 | C141: 34 | D141: 31 | E141: 48 | F141: 100 | G141: 43.65266 | H141: 1.718608661 | I141: 43 | J141: 44 | K141: -0.34734
A142: 44 | B142: 8 | C142: 34 | D142: 32 | E142: 60 | F142: 100 | G142: 56.4998 | H142: 2.224401575 | I142: 44 | J142: 57 | K142: -0.5002
A143: 45 | B143: 8 | C143: 34 | D143: 20 | E143: 24 | F143: 125 | G143: 19.98918438 | H143: 0.7869757628 | I143: 45 | J143: 20 | K143: -0.010815625
A144: 46 | B144: 8 | C144: 34 | D144: 23 | E144: 36 | F144: 125 | G144: 32.169125 | H144: 1.266500984 | I144: 46 | J144: 32 | K144: 0.169125
A145: 47 | B145: 8 | C145: 34 | D145: 25 | E145: 48 | F145: 125 | G145: 44.18280937 | H145: 1.739480684 | I145: 47 | J145: 44 | K145: 0.182809375
A146: 48 | B146: 8 | C146: 34 | D146: 25 | E146: 60 | F146: 125 | G146: 57.29860937 | H146: 2.255850763 | I146: 48 | J146: 57 | K146: 0.298609375
A147: 49 | B147: 8 | C147: 34 | D147: 16 | E147: 23 | F147: 150 | G147: 19.95989 | H147: 0.7858224409 | I147: 49 | J147: 20 | K147: -0.04011
A148: 50 | B148: 8 | C148: 34 | D148: 18 | E148: 35 | F148: 150 | G148: 32.1679 | H148: 1.266452756 | I148: 50 | J148: 32 | K148: 0.1679
A149: 51 | B149: 8 | C149: 34 | D149: 20 | E149: 47 | F149: 150 | G149: 43.928915 | H149: 1.729484843 | I149: 51 | J149: 44 | K149: -0.071085
A150: 52 | B150: 8 | C150: 34 | D150: 20 | E150: 58.5 | F150: 150 | G150: 56.929375 | H150: 2.241313976 | I150: 52 | J150: 57 | K150: -0.070625
A151: 53 | B151: 8 | C151: 34 | D151: 11 | E151: 22 | F151: 200 | G151: 20.00762 | H151: 0.7877015748 | I151: 53 | J151: 20 | K151: 0.00762
A152: 54 | B152: 8 | C152: 34 | D152: 13 | E152: 35 | F152: 200 | G152: 31.9576 | H152: 1.258173228 | I152: 54 | J152: 32 | K152: -0.0424
A153: 55 | B153: 8 | C153: 34 | D153: 14 | E153: 46 | F153: 200 | G153: 44.01112 | H153: 1.73272126 | I153: 55 | J153: 44 | K153: 0.01112
A154: 56 | B154: 8 | C154: 34 | D154: 14 | E154: 57 | F154: 200 | G154: 57.0016 | H154: 2.24415748 | I154: 56 | J154: 57 | K154: 0.0016
A155: 57 | B155: 8 | C155: 34 | D155: 40 | E155: 24 | F155: 34 | G155: 19.79013862 | H155: 0.7791393157 | I155: 57 | J155: 20 | K155: -0.20986138
A156: 58 | B156: 8 | C156: 34 | D156: 40 | E156: 37 | F156: 34 | G156: 31.26379 | H156: 1.230857874 | I156: 58 | J156: 32 | K156: -0.73621
A157: 59 | B157: 8 | C157: 34 | D157: 40 | E157: 50 | F157: 34 | G157: 44.02909924 | H157: 1.733429104 | I157: 59 | J157: 44 | K157: 0.0290992432
A158: 60 | B158: 8 | C158: 34 | D158: 40 | E158: 63 | F158: 34 | G158: 55.97264784 | H158: 2.203647553 | I158: 60 | J158: 57 | K158: -1.02735216
A159: 61 | B159: 8 | C159: 34 | D159: 40 | E159: 25 | F159: 50 | G159: 20.4903375 | H159: 0.8067062008 | I159: 61 | J159: 20 | K159: 0.4903375
A160: 62 | B160: 8 | C160: 34 | D160: 40 | E160: 38 | F160: 50 | G160: 32.82275 | H160: 1.292234252 | I160: 62 | J160: 32 | K160: 0.82275
A161: 63 | B161: 8 | C161: 34 | D161: 40 | E161: 50 | F161: 50 | G161: 44.067675 | H161: 1.734947835 | I161: 63 | J161: 44 | K161: 0.067675
A162: 64 | B162: 8 | C162: 34 | D162: 40 | E162: 64 | F162: 50 | G162: 58.1153 | H162: 2.288003937 | I162: 64 | J162: 57 | K162: 1.1153
A163: 65 | B163: 8 | C163: 34 | D163: 30 | E163: 24 | F163: 70 | G163: 19.5897745 | H163: 0.7712509646 | I163: 65 | J163: 20 | K163: -0.4102255
A164: 66 | B164: 8 | C164: 34 | D164: 29 | E164: 37 | F164: 70 | G164: 32.52145 | H164: 1.280372047 | I164: 66 | J164: 32 | K164: =G164-J164 -> 0.52145
A165: =A164+1 -> 67 | B165: 8 | C165: 34 | D165: 30 | E165: 49 | F165: 70 | G165: 43.7010914 | H165: 1.720515409 | I165: =I164+1 -> 67 | J165: 44 | K165: -0.2989086
A166: 68 | B166: 8 | C166: 34 | D166: 31 | E166: 62 | F166: 70 | G166: 57.408716 | H166: 2.260185669 | I166: 68 | J166: 57 | K166: 0.408716
A167: 69 | B167: 8 | C167: 34 | D167: 21 | E167: 24 | F167: 100 | G167: 20.4172 | H167: 0.8038267717 | I167: 69 | J167: 20 | K167: 0.4172
A168: 70 | B168: 8 | C168: 34 | D168: 21 | E168: 35 | F168: 100 | G168: 31.5695 | H168: 1.242893701 | I168: 70 | J168: 32 | K168: -0.4305
A169: 71 | B169: 8 | C169: 34 | D169: 23 | E169: 48 | F169: 100 | G169: 44.3611 | H169: 1.7465 | I169: 71 | J169: 44 | K169: 0.3611
A170: 72 | B170: 8 | C170: 34 | D170: 23 | E170: 60 | F170: 100 | G170: 57.0678 | H170: 2.24676378 | I170: 72 | J170: 57 | K170: 0.0678
A171: 73 | B171: 8 | C171: 34 | D171: 16 | E171: 22 | F171: 125 | G171: 19.40594531 | H171: 0.764013595 | I171: 73 | J171: 20 | K171: -0.5940546875
A172: 74 | B172: 8 | C172: 34 | D172: 17 | E172: 34 | F172: 125 | G172: 31.442875 | H172: 1.237908465 | I172: 74 | J172: 32 | K172: -0.557125
A173: 75 | B173: 8 | C173: 34 | D173: 18 | E173: 46 | F173: 125 | G173: 43.86467187 | H173: 1.726955586 | I173: 75 | J173: 44 | K173: -0.135328125
A174: 76 | B174: 8 | C174: 34 | D174: 18 | E174: 58 | F174: 125 | G174: 56.19275 | H174: 2.212312992 | I174: 76 | J174: 57 | K174: -0.80725
A175: 77 | B175: 8 | C175: 34 | D175: 12 | E175: 22 | F175: 150 | G175: 20.3539625 | H175: 0.8013371063 | I175: 77 | J175: 20 | K175: 0.3539625
A176: 78 | B176: 8 | C176: 34 | D176: 15 | E176: 34 | F176: 150 | G176: 32.31625 | H176: 1.272293307 | I176: 78 | J176: 32 | K176: 0.31625
A177: 79 | B177: 8 | C177: 34 | D177: 15 | E177: 45 | F177: 150 | G177: 43.963125 | H177: 1.730831693 | I177: 79 | J177: 44 | K177: -0.036875
A178: 80 | B178: 8 | C178: 34 | D178: 17 | E178: 58 | F178: 150 | G178: 57.0835 | H178: 2.24738189 | I178: 80 | J178: 57 | K178: 0.0835
A179: 81 | B179: 8 | C179: 34 | D179: 9 | E179: 21 | F179: 200 | G179: 19.955 | H179: 0.7856299213 | I179: 81 | J179: 20 | K179: -0.045
A180: 82 | B180: 8 | C180: 34 | D180: 10 | E180: 32 | F180: 200 | G180: 32.063 | H180: 1.262322835 | I180: 82 | J180: 32 | K180: 0.063
A181: 83 | B181: 8 | C181: 34 | D181: 11 | E181: 46 | F181: 200 | G181: 44.0156 | H181: 1.732897638 | I181: 83 | J181: 44 | K181: 0.0156
A182: 84 | B182: 8 | C182: 34 | D182: 11 | E182: 57 | F182: 200 | G182: 57.1624 | H182: 2.250488189 | I182: 84 | J182: 57 | K182: 0.1624
J184: ± 1 mm | K184: 18
A186: Case A3 2.4 ˂ d2/d1 ≤ 3.5
E187: for NRC 0, 9 to 13, 5 to 8
A188: Column1 | B188: d1 | C188: d2 | D188: dm | E188: cm | F188: a2 | G188: Cr | H188: Cri | I188: Column2 | J188: Cr meas. | K188: Cr Diff.
A189: Cases | B189: mm | C189: mm | D189: mm | E189: mm | F189: mm | G189: mm | H189: inch | I189: Cases
A190: 1 | B190: 12 | C190: 34 | D190: 40 | E190: 24 | F190: 34 | G190: 20.103921 | H190: 0.7914929529 | I190: 1 | J190: 20 | K190: =G190-J190 -> 0.1039210048
A191: =A190+1 -> 2 | B191: 12 | C191: 34 | D191: 40 | E191: 36 | F191: 34 | G191: 31.78500438 | H191: 1.251378125 | I191: =I190+1 -> 2 | J191: 32 | K191: =G191-J191 -> -0.2149956232
A192: =A191+1 -> 3 | B192: 12 | C192: 34 | D192: 40 | E192: 47 | F192: 34 | G192: 43.84579724 | H192: 1.72621249 | I192: =I191+1 -> 3 | J192: 44 | K192: -0.15420276
A193: 4 | B193: 12 | C193: 34 | D193: 40 | E193: 58 | F193: 34 | G193: 55.28894741 | H193: 2.176730213 | I193: 4 | J193: 55 | K193: 0.2889474136
A194: 5 | B194: 12 | C194: 34 | D194: 40 | E194: 24 | F194: 50 | G194: 19.8321 | H194: 0.7807913386 | I194: 5 | J194: 20 | K194: -0.1679
A195: 6 | B195: 12 | C195: 34 | D195: 40 | E195: 37 | F195: 50 | G195: 32.0199875 | H195: 1.260629429 | I195: 6 | J195: 32 | K195: 0.0199875
A196: 7 | B196: 12 | C196: 34 | D196: 40 | E196: 49 | F196: 50 | G196: 44.416475 | H196: 1.748680118 | I196: 7 | J196: 44 | K196: 0.416475
A197: 8 | B197: 12 | C197: 34 | D197: 40 | E197: 60 | F197: 50 | G197: 55.6381375 | H197: 2.190477854 | I197: 8 | J197: 56 | K197: -0.3618625
A198: 9 | B198: 12 | C198: 34 | D198: 40 | E198: 24 | F198: 70 | G198: 19.8901416 | H198: 0.7830764409 | I198: 9 | J198: 20 | K198: -0.1098584
A199: 10 | B199: 12 | C199: 34 | D199: 40 | E199: 38 | F199: 70 | G199: 32.7533481 | H199: 1.289501894 | I199: 10 | J199: 32 | K199: 0.7533481
A200: 11 | B200: 12 | C200: 34 | D200: 40 | E200: 49 | F200: 70 | G200: 43.526287 | H200: 1.713633346 | I200: 11 | J200: 44 | K200: -0.473713
A201: 12 | B201: 12 | C201: 34 | D201: 40 | E201: 63 | F201: 70 | G201: 57.6507577 | H201: 2.26971487 | I201: 12 | J201: 58 | K201: -0.3492423
A202: 13 | B202: 12 | C202: 34 | D202: 29 | E202: 24 | F202: 100 | G202: 20.5596 | H202: 0.8094330709 | I202: 13 | J202: 20 | K202: 0.5596
A203: 14 | B203: 12 | C203: 34 | D203: 32 | E203: 36 | F203: 100 | G203: 31.39825 | H203: 1.236151575 | I203: 14 | J203: 32 | K203: -0.60175
A204: 15 | B204: 12 | C204: 34 | D204: 39 | E204: 50 | F204: 100 | G204: 44.5676 | H204: 1.754629921 | I204: 15 | J204: 44 | K204: 0.5676
... 70 more rows

Sheet Checked Ccyl
C1: Cases A | E1: On Cylinders
B3: Case A1 5.5 ˂ d2/d1 ≤ 7
F4: for NRC Settings 0, 10 and 5
C5: d1 | D5: d2 | E5: dm | F5: cm | G5: a2 | H5: Cr | I5: Cri | J5: Cases | K5: Cr | L5: Cri
A6: Cases | B6: NCR | C6: mm | D6: mm | E6: mm | F6: mm | G6: mm | H6: mm | I6: inch | J6: Accur. | K6: mm | L6: inch
A7: 1 | B7: 0 | C7: 6 | D7: 40 | E7: 40 | F7: 23 | G7: 40 | H7: 20.015432 | I7: 0.7880091339 | J7: 1 | K7: 20.015432 | L7: 0.7880091339
C8: On Cylinder diameter 850 mm / 6000 mm | H8: 27.06004142 | I8: 1.065355961 | J8: 0 | K8: 21.00524094 | L8: 0.8269779898
B9: a1 ˃ 13 | G9: Ccyl | H9: =H8-H7 -> 7.044609419 | I9: =I8-I7 -> 0.2773468275 | K9: =K8-K7 -> 0.9898089408 | L9: =L8-L7 -> 0.03896885594
A10: 2 | C10: 6 | D10: 40 | E10: 40 | F10: 36 | G10: 70 | H10: 31.5924777 | I10: 1.243798335 | J10: 2 | K10: 31.5924777 | L10: 1.243798335
C11: On Cylinder diameter 850 mm / 3000 mm | H11: 38.63708712 | I11: 1.521145162 | J11: 0 | K11: 33.57308458 | L11: 1.321774984
G12: Ccyl | H12: =H11-H10 -> 7.044609419 | I12: =I11-I10 -> 0.2773468275 | K12: =K11-K10 -> 1.980606881 | L12: =L11-L10 -> 0.07797664886
A13: 3 | C13: 6 | D13: 40 | E13: 32 | F13: 50 | G13: 125 | H13: 43.92998438 | I13: 1.729526944 | J13: 3 | K13: 43.92998438 | L13: 1.729526944
C14: On Cylinder diameter 850 mm / 2000 mm | H14: 50.97459379 | I14: 2.006873771 | J14: 0 | K14: 46.903374 | L14: 1.846589527
G15: Ccyl | H15: =H14-H13 -> 7.044609419 | I15: =I14-I13 -> 0.2773468275 | K15: =K14-K13 -> 2.973389621 | L15: =L14-L13 -> 0.1170625835
A16: 4 | C16: 6 | D16: 40 | E16: 19 | F16: 62 | G16: 200 | H16: 55.082 | I16: 2.168582677 | J16: 4 | K16: 55.082 | L16: 2.168582677
C17: On Cylinder diameter 850 mm / 1500 mm | H17: 62.12660942 | I17: 2.445929505 | J17: 0 | K17: 59.05116669 | L17: 2.324849082
G18: Ccyl | H18: =H17-H16 -> 7.044609419 | I18: =I17-I16 -> 0.2773468275 | K18: =K17-K16 -> 3.969166686 | L18: =L17-L16 -> 0.156266405
A19: =A16+1 -> 5 | B19: 10 | C19: 6 | D19: 40 | E19: 40 | F19: 23 | G19: 40 | H19: 20.015432 | I19: 0.7880091339 | J19: =J16+1 -> 5 | K19: 20.015432 | L19: 0.7880091339
C20: On Cylinder diameter 850 mm / 1200 mm | H20: 27.06004142 | I20: 1.065355961 | J20: 0 | K20: 24.9844005 | L20: 0.983637815
B21: 9 ≤ a1 ≤ 13 | G21: Ccyl | H21: =H20-H19 -> 7.044609419 | I21: =I20-I19 -> 0.2773468275 | K21: =K20-K19 -> 4.9689685 | L21: =L20-L19 -> 0.1956286811
A22: 6 | C22: 6 | D22: 40 | E22: 40 | F22: 36 | G22: 70 | H22: 31.5924777 | I22: 1.243798335 | J22: 6 | K22: 31.5924777 | L22: 1.243798335
C23: On Cylinder diameter 850 mm / 1000 mm | H23: 38.63708712 | I23: 1.521145162 | J23: 0 | K23: 37.56633165 | L23: 1.478989435
G24: Ccyl | H24: =H23-H22 -> 7.044609419 | I24: =I23-I22 -> 0.2773468275 | K24: =K23-K22 -> 5.973853949 | L24: =L23-L22 -> 0.2351911004
A25: 7 | C25: 6 | D25: 40 | E25: 27 | F25: 49 | G25: 125 | H25: 43.85204219 | I25: 1.726458354 | J25: 7 | K25: 43.85204219 | L25: 1.726458354
C26: On Cylinder diameter 850 mm / 920 mm | H26: 50.89665161 | I26: 2.003805181 | J26: 0 | K26: 50.35256611 | L26: 1.982384493
G27: Ccyl | H27: =H26-H25 -> 7.044609419 | I27: =I26-I25 -> 0.2773468275 | K27: =K26-K25 -> 6.500523927 | L27: =L26-L25 -> 0.2559261389
A28: 8 | C28: 6 | D28: 40 | E28: 16 | F28: 60 | G28: 200 | H28: 57.02766 | I28: 2.245183465 | J28: 8 | K28: 57.02766 | L28: 2.245183465
C29: On Cylinder diameter 850 mm / 849 mm | H29: 64.07226942 | I29: 2.522530292 | J29: 0 | K29: 64.03537054 | L29: 2.52107758
G30: Ccyl | H30: =H29-H28 -> 7.044609419 | I30: =I29-I28 -> 0.2773468275 | K30: =K29-K28 -> 7.007710539 | L30: =L29-L28 -> 0.2758941157
A31: =A28+1 -> 9 | B31: 5 | C31: 6 | D31: 40 | E31: 40 | F31: 24 | G31: 40 | H31: 20.015432 | I31: 0.7880091339 | J31: =J28+1 -> 9 | K31: 20.015432 | L31: 0.7921091134
C32: On Cylinder diameter 850 mm / 800 mm | H32: 27.18481742 | I32: 1.070268402 | J32: 0 | K32: 26.92676416 | L32: 1.060108825
B33: 1 ≤ a1 ≤ 8 | G33: Ccyl | H33: =H32-H31 -> 7.169385419 | I33: =I32-I31 -> 0.2822592685 | K33: =K32-K31 -> 6.91133216 | L33: =L32-L31 -> 0.2679997118
A34: 10 | C34: 6 | D34: 40 | E34: 34 | F34: 37 | G34: 70 | H34: 32.1161778 | I34: 1.264416449 | J34: 10 | K34: 32.1161778 | L34: 1.264416449
C35: On Cylinder diameter 850 mm / 650 mm | H35: 39.16078722 | I35: 1.541763276 | J35: 0 | K35: 38.20525883 | L35: 1.504144048
G36: Ccyl | H36: =H35-H34 -> 7.044609419 | I36: =I35-I34 -> 0.2773468275 | K36: =K35-K34 -> 6.089081026 | L36: =L35-L34 -> 0.2397275995
A37: 11 | C37: 6 | D37: 40 | E37: 19 | F37: 48 | G37: 125 | H37: 44.33917187 | I37: 1.745636688 | J37: 11 | K37: 44.33917187 | L37: 1.745636688
C38: On Cylinder diameter 850 mm / 500 mm | H38: 51.38378129 | I38: 2.022983516 | J38: 0 | K38: 48.79741312 | L38: 1.921157997
G39: Ccyl | H39: =H38-H37 -> 7.044609419 | I39: =I38-I37 -> 0.2773468275 | K39: =K38-K37 -> 4.45824125 | L39: =L38-L37 -> 0.1755213091
A40: 12 | C40: 6 | D40: 40 | E40: 12 | F40: 61 | G40: 200 | H40: 56.9262 | I40: 2.241188976 | J40: 12 | K40: 56.9262 | L40: 2.241188976
C41: On Cylinder diameter 850 mm / 400 mm | H41: 63.97080942 | I41: 2.518535804 | J41: 0 | K41: 59.20401952 | L41: 2.33086691
G42: Ccyl | H42: =H41-H40 -> 7.044609419 | I42: =I41-I40 -> 0.2773468275 | K42: =K41-K40 -> 2.27781952 | L42: =L41-L40 -> 0.08967793386
B44: Case A2 3.5 ˂ d2/d1 ≤ 5.5 on Cylinders
F45: for NRC Settings 0, 10 and 5
B46: Column1 | C46: d1 | D46: d2 | E46: dm | F46: cm | G46: a2 | H46: Cr | I46: Cri | J46: Cases | K46: Cr2 | L46: Cri2
A47: Cases | B47: NCR | C47: mm | D47: mm | E47: mm | F47: mm | G47: mm | H47: mm | I47: inch | J47: Accur. | K47: mm | L47: inch
A48: 1 | B48: 0 | C48: 8 | D48: 34 | E48: 40 | F48: 24 | G48: 34 | H48: 20.21815154 | I48: 0.7959902182 | J48: 1 | K48: 20.21815154 | L48: 0.7959902182
C49: On Cylinder diameter 850 mm / 6000 mm | H49: 27.26276096 | I49: 1.073337046 | J49: 0 | K49: 21.20796048 | L49: 0.8349590741
B50: a1 ˃ 13 | G50: Ccyl | H50: =H49-H48 -> 7.044609419 | I50: =I49-I48 -> 0.2773468275 | K50: =K49-K48 -> 0.9898089408 | L50: =L49-L48 -> 0.03896885594
A51: 2 | C51: 8 | D51: 34 | E51: 40 | F51: 38 | G51: 70 | H51: 32.4525946 | I51: 1.277661205 | J51: 2 | K51: 32.4525946 | L51: 1.277661205
C52: On Cylinder diameter 850 mm / 3000 mm | H52: 39.49720402 | I52: 1.555008032 | J52: 0 | K52: 34.43320148 | L52: 1.355637854
G53: Ccyl | H53: =H52-H51 -> 7.044609419 | I53: =I52-I51 -> 0.2773468275 | K53: =K52-K51 -> 1.980606881 | L53: =L52-L51 -> 0.07797664886
A54: 3 | C54: 8 | D54: 34 | E54: 28 | F54: 49 | G54: 125 | H54: 43.53429063 | I54: 1.71394845 | J54: 3 | K54: 43.53429063 | L54: 1.71394845
C55: On Cylinder diameter 850 mm / 2000 mm | H55: 50.57890004 | I55: 1.991295277 | J55: 0 | K55: 46.50768025 | L55: 1.831011033
G56: Ccyl | H56: =H55-H54 -> 7.044609419 | I56: =I55-I54 -> 0.2773468275 | K56: =K55-K54 -> 2.973389621 | L56: =L55-L54 -> 0.1170625835
A57: 4 | C57: 8 | D57: 34 | E57: 18 | F57: 61 | G57: 200 | H57: 57.0556 | I57: 2.246283465 | J57: 4 | K57: 57.0556 | L57: 2.246283465
C58: On Cylinder diameter 850 mm / 1500 mm | H58: 64.10020942 | I58: 2.523630292 | J58: 0 | K58: 61.02476669 | L58: 2.40254987
G59: Ccyl | H59: =H58-H57 -> 7.044609419 | I59: =I58-I57 -> 0.2773468275 | K59: =K58-K57 -> 3.969166686 | L59: =L58-L57 -> 0.156266405
A60: =A57+1 -> 5 | B60: 10 | C60: 8 | D60: 34 | E60: 40 | F60: 24 | G60: 34 | H60: 19.96280411 | I60: 0.7859371698 | J60: 5 | K60: 19.96280411 | L60: 0.7859371698
C61: On Cylinder diameter 850 mm / 1200 mm | H61: 27.00741353 | I61: 1.063283997 | J61: 0 | K61: 24.93177261 | L61: 0.9815658509
B62: 9 ≤ a1 ≤ 13 | G62: Ccyl | H62: =H61-H60 -> 7.044609419 | I62: =I61-I60 -> 0.2773468275 | K62: =K61-K60 -> 4.9689685 | L62: =L61-L60 -> 0.1956286811
A63: 6 | C63: 8 | D63: 34 | E63: 40 | F63: 38 | G63: 70 | H63: 32.872764 | I63: 1.294203307 | J63: 6 | K63: 32.872764 | L63: 1.294203307
C64: On Cylinder diameter 850 mm / 1000 mm | H64: 39.91737342 | I64: 1.571550135 | J64: 0 | K64: 38.84661795 | L64: 1.529394407
G65: Ccyl | H65: =H64-H63 -> 7.044609419 | I65: =I64-I63 -> 0.2773468275 | K65: =K64-K63 -> 5.973853949 | L65: =L64-L63 -> 0.2351911004
A66: 7 | C66: 8 | D66: 34 | E66: 25 | F66: 48 | G66: 125 | H66: 44.18280937 | I66: 1.739480684 | J66: 7 | K66: 44.18280937 | L66: 1.739480684
C67: On Cylinder diameter 850 mm / 920 mm | H67: 51.22741879 | I67: 2.016827512 | J67: 0 | K67: 50.6833333 | L67: 1.995406823
G68: Ccyl | H68: =H67-H66 -> 7.044609419 | I68: =I67-I66 -> 0.2773468275 | K68: =K67-K66 -> 6.500523927 | L68: =L67-L66 -> 0.2559261389
A69: 8 | C69: 8 | D69: 34 | E69: 14 | F69: 57 | G69: 200 | H69: 57.0016 | I69: 2.24415748 | J69: 8 | K69: 57.0016 | L69: 2.24415748
C70: On Cylinder diameter 850 mm / 849 mm | H70: 64.04620942 | I70: 2.521504308 | J70: 0 | K70: 64.00931054 | L70: 2.520051596
G71: Ccyl | H71: =H70-H69 -> 7.044609419 | I71: =I70-I69 -> 0.2773468275 | K71: =K70-K69 -> 7.007710539 | L71: =L70-L69 -> 0.2758941157
A72: =A69+1 -> 9 | B72: 5 | C72: 8 | D72: 34 | E72: 40 | F72: 24 | G72: 34 | H72: 19.79013862 | I72: 0.7791393157 | J72: 9 | K72: 19.79013862 | L72: 0.7791393157
C73: On Cylinder diameter 850 mm / 800 mm | H73: 26.83474804 | I73: 1.056486143 | J73: 0 | K73: 26.57669478 | L73: 1.046326566
B74: 1 ≤ a1 ≤ 8 | G74: Ccyl | H74: =H73-H72 -> 7.044609419 | I74: =I73-I72 -> 0.2773468275 | K74: =K73-K72 -> 6.78655616 | L74: =L73-L72 -> 0.2671872504
A75: 10 | C75: 8 | D75: 34 | E75: 29 | F75: 37 | G75: 70 | H75: 32.52145 | I75: 1.280372047 | J75: 10 | K75: 32.52145 | L75: 1.280372047
C76: On Cylinder diameter 850 mm / 650 mm | H76: 39.56605942 | I76: 1.557718875 | J76: 0 | K76: 38.61053103 | L76: 1.520099647
G77: Ccyl | H77: =H76-H75 -> 7.044609419 | I77: =I76-I75 -> 0.2773468275 | K77: =K76-K75 -> 6.089081026 | L77: =L76-L75 -> 0.2397275995
A78: 11 | C78: 8 | D78: 34 | E78: 18 | F78: 46 | G78: 125 | H78: 43.86467187 | I78: 1.726955586 | J78: 11 | K78: 43.86467187 | L78: 1.726955586
C79: On Cylinder diameter 850 mm / 500 mm | H79: 50.90928129 | I79: 2.004302413 | J79: 0 | K79: 48.32291313 | L79: 1.902476895
G80: Ccyl | H80: =H79-H78 -> 7.044609419 | I80: =I79-I78 -> 0.2773468275 | K80: =K79-K78 -> 4.45824125 | L80: =L79-L78 -> 0.1755213091
A81: 12 | C81: 8 | D81: 34 | E81: 11 | F81: 57 | G81: 200 | H81: 57.1624 | I81: 2.250488189 | J81: 12 | K81: 57.1624 | L81: 2.250488189
C82: On Cylinder diameter 850 mm / 400 mm | H82: 64.20700942 | I82: 2.527835017 | J82: 0 | K82: 59.44021952 | L82: 2.340166123
G83: Ccyl | H83: =H82-H81 -> 7.044609419 | I83: =I82-I81 -> 0.2773468275 | K83: =K82-K81 -> 2.27781952 | L83: =L82-L81 -> 0.08967793386
B85: Case A3 2.4 ˂ d2/d1 ≤ 3.5 on Cylinders
F86: for NRC Settings 0, 10 and 5
A87: Column1 | B87: Column1 | C87: d1 | D87: d2 | E87: dm | F87: cm | G87: a2 | H87: Cr | I87: Cri | J87: Cases | K87: Cr2 | L87: Cri2
A88: Cases | B88: NCR | C88: mm | D88: mm | E88: mm | F88: mm | G88: mm | H88: mm | I88: inch | J88: Accur. | K88: mm | L88: inch
A89: 1 | B89: 0 | C89: 12 | D89: 34 | E89: 40 | F89: 24 | G89: 34 | H89: 20.103921 | I89: 0.7914929529 | J89: 1 | K89: 20.103921 | L89: 0.7914929529
C90: On Cylinder diameter 850 mm / 6000 mm | H90: 27.14853042 | I90: 1.06883978 | J90: 0 | K90: 21.09372995 | L90: 0.8304618089
B91: a1 ˃ 13 | G91: Ccyl | H91: =H90-H89 -> 7.044609419 | I91: =I90-I89 -> 0.2773468275 | K91: =K90-K89 -> 0.9898089408 | L91: =L90-L89 -> 0.03896885594
A92: 2 | C92: 12 | D92: 34 | E92: 40 | F92: 38 | G92: 70 | H92: 32.7533481 | I92: 1.289501894 | J92: 2 | K92: 32.7533481 | L92: 1.289501894
C93: On Cylinder diameter 850 mm / 3000 mm | H93: 39.79795752 | I93: 1.566848721 | J93: 0 | K93: 34.73395498 | L93: 1.367478543
G94: Ccyl | H94: =H93-H92 -> 7.044609419 | I94: =I93-I92 -> 0.2773468275 | K94: =K93-K92 -> 1.980606881 | L94: =L93-L92 -> 0.07797664886
A95: 3 | C95: 12 | D95: 34 | E95: 28 | F95: 48 | G95: 125 | H95: 43.35240625 | I95: 1.706787648 | J95: 3 | K95: 43.35240625 | L95: 1.706787648
C96: On Cylinder diameter 850 mm / 2000 mm | H96: 50.39701567 | I96: 1.984134475 | J96: 0 | K96: 46.32579587 | L96: 1.823850231
G97: Ccyl | H97: =H96-H95 -> 7.044609419 | I97: =I96-I95 -> 0.2773468275 | K97: =K96-K95 -> 2.973389621 | L97: =L96-L95 -> 0.1170625835
A98: 4 | C98: 12 | D98: 34 | E98: 20 | F98: 60 | G98: 200 | H98: 57.0526 | I98: 2.246165354 | J98: 4 | K98: 57.0526 | L98: 2.246165354
C99: On Cylinder diameter 850 mm / 1500 mm | H99: 64.09720942 | I99: 2.523512182 | J99: 0 | K99: 61.02176669 | L99: 2.402431759
G100: Ccyl | H100: =H99-H98 -> 7.044609419 | I100: =I99-I98 -> 0.2773468275 | K100: =K99-K98 -> 3.969166686 | L100: =L99-L98 -> 0.156266405
A101: =A98+1 -> 5 | B101: 10 | C101: 12 | D101: 34 | E101: 40 | F101: 24 | G101: 34 | H101: 20.3271949 | I101: 0.8002832636 | J101: 5 | K101: 20.3271949 | L101: 0.8002832636
C102: On Cylinder diameter 850 mm / 1200 mm | H102: 27.37180431 | I102: 1.077630091 | J102: 0 | K102: 25.2961634 | L102: 0.9959119447
B103: 9 ≤ a1 ≤ 13 | G103: Ccyl | H103: =H102-H101 -> 7.044609419 | I103: =I102-I101 -> 0.2773468275 | K103: =K102-K101 -> 4.9689685 | L103: =L102-L101 -> 0.1956286811
A104: 6 | C104: 12 | D104: 34 | E104: 40 | F104: 36 | G104: 70 | H104: 31.764385 | I104: 1.250566339 | J104: 6 | K104: 31.764385 | L104: 1.250566339
C105: On Cylinder diameter 850 mm / 1000 mm | H105: 38.80899442 | I105: 1.527913166 | J105: 0 | K105: 37.73823895 | L105: 1.485757439
G106: Ccyl | H106: =H105-H104 -> 7.044609419 | I106: =I105-I104 -> 0.2773468275 | K106: =K105-K104 -> 5.973853949 | L106: =L105-L104 -> 0.2351911004
A107: 7 | C107: 12 | D107: 34 | E107: 25 | F107: 47 | G107: 125 | H107: 43.87657813 | I107: 1.727424336 | J107: 7 | K107: 43.87657813 | L107: 1.727424336
C108: On Cylinder diameter 850 mm / 920 mm | H108: 50.92118754 | I108: 2.004771163 | J108: 0 | K108: 50.37710205 | L108: 1.983350475
G109: Ccyl | H109: =H108-H107 -> 7.044609419 | I109: =I108-I107 -> 0.2773468275 | K109: =K108-K107 -> 6.500523927 | L109: =L108-L107 -> 0.2559261389
A110: 8 | C110: 12 | D110: 34 | E110: 17 | F110: 58 | G110: 200 | H110: 57.0056 | I110: 2.244314961 | J110: 8 | K110: 57.0056 | L110: 2.244314961
C111: On Cylinder diameter 850 mm / 849 mm | H111: 64.05020942 | I111: 2.521661788 | J111: 0 | K111: 64.01331054 | L111: 2.520209076
G112: Ccyl | H112: =H111-H110 -> 7.044609419 | I112: =I111-I110 -> 0.2773468275 | K112: =K111-K110 -> 7.007710539 | L112: =L111-L110 -> 0.2758941157
A113: =A110+1 -> 9 | B113: 5 | C113: 12 | D113: 34 | E113: 40 | F113: 25 | G113: 34 | H113: 20.34287075 | I113: 0.8009004231 | J113: 9 | K113: 20.34287075 | L113: 0.8009004231
C114: On Cylinder diameter 850 mm / 800 mm | H114: 27.38748017 | I114: 1.078247251 | J114: 0 | K114: 27.12942691 | L114: 1.068087674
B115: 1 ≤ a1 ≤ 8 | G115: Ccyl | H115: =H114-H113 -> 7.044609419 | I115: =I114-I113 -> 0.2773468275 | K115: =K114-K113 -> 6.78655616 | L115: =L114-L113 -> 0.2671872504
A116: 10 | C116: 12 | D116: 34 | E116: 29 | F116: 37 | G116: 70 | H116: 32.00029964 | I116: 1.259854317 | J116: 10 | K116: 32.00029964 | L116: 1.259854317
C117: On Cylinder diameter 850 mm / 650 mm | H117: 39.04490906 | I117: 1.537201144 | J117: 0 | K117: 38.08938067 | L117: 1.499581916
G118: Ccyl | H118: =H117-H116 -> 7.044609419 | I118: =I117-I116 -> 0.2773468275 | K118: =K117-K116 -> 6.089081026 | L118: =L117-L116 -> 0.2397275995
A119: 11 | C119: 12 | D119: 34 | E119: 19 | F119: 46 | G119: 125 | H119: 44.0065625 | I119: 1.732541831 | J119: 11 | K119: 44.0065625 | L119: 1.732541831
C120: On Cylinder diameter 850 mm / 500 mm | H120: 51.05117192 | I120: 2.009888658 | J120: 0 | K120: 48.46480375 | L120: 1.90806314
G121: Ccyl | H121: =H120-H119 -> 7.044609419 | I121: =I120-I119 -> 0.2773468275 | K121: =K120-K119 -> 4.45824125 | L121: =L120-L119 -> 0.1755213091
A122: 12 | C122: 12 | D122: 34 | E122: 14 | F122: 57 | G122: 200 | H122: 57.0666 | I122: 2.246716535 | J122: 12 | K122: 57.0666 | L122: 2.246716535
C123: On Cylinder diameter 850 mm / 400 mm | H123: 64.11120942 | I123: 2.524063363 | J123: 0 | K123: 59.34441952 | L123: 2.336394469
G124: Ccyl | H124: =H123-H122 -> 7.044609419 | I124: =I123-I122 -> 0.2773468275 | K124: =K123-K122 -> 2.27781952 | L124: =L123-L122 -> 0.08967793386

Sheet Checked Cases B C D
B1: Cases B, C and D
C2: Accuracy: | F2: Total with ±0 mm | I2: Total with ±1 mm
E3: =H4-H3 -> 104 | F3: =E3/E4 -> 0.8 | H3: =SUM(K54,K104,K149) -> 26 | I3: =H3/H4 -> 0.2
D4: of | E4: 130 | F4: cases | G4: of | H4: 130 | I4: cases
A5: Case B d2/d1 ˂ 2.1 and d2 ˂ 20 mm
B6: d1 | C6: d2 | D6: dm | E6: cm | F6: a2 | G6: Cr | H6: Cri | J6: Cr meas. | K6: Cr Diff.
A7: Cases | B7: mm | C7: mm | D7: mm | E7: mm | F7: mm | G7: mm | H7: inch | I7: Cases
A8: 1 | B8: 8 | C8: 16 | D8: 40 | E8: 19 | F8: 16 | G8: 14.108976 | H8: 0.5554714961 | I8: 1 | J8: 14 | K8: =G8-J8 -> 0.108976
A9: =A8+1 -> 2 | B9: 8 | C9: 16 | D9: 40 | E9: 27 | F9: 16 | G9: 21.777696 | H9: 0.8573896063 | I9: =I8+1 -> 2 | J9: 22 | K9: =G9-J9 -> -0.222304
A10: =A9+1 -> 3 | B10: 8 | C10: 16 | D10: 40 | E10: 38 | F10: 16 | G10: 32.116948 | H10: 1.264446772 | I10: =I9+1 -> 3 | J10: 32 | K10: 0.116948
A11: 4 | B11: 8 | C11: 16 | D11: 40 | E11: 51 | F11: 16 | G11: 44.02968 | H11: 1.733451969 | I11: 4 | J11: 44 | K11: 0.02968
A12: 5 | B12: 8 | C12: 16 | D12: 40 | E12: 61 | F12: 16 | G12: 52.96746 | H12: 2.085333071 | I12: 5 | J12: 53 | K12: -0.03254
A13: 6 | B13: 8 | C13: 16 | D13: 30 | E13: 18 | F13: 50 | G13: 13.859434 | H13: 0.5456470079 | I13: 6 | J13: 14 | K13: -0.140566
A14: 7 | B14: 8 | C14: 16 | D14: 31 | E14: 28 | F14: 50 | G14: 22.328564 | H14: 0.8790773228 | I14: 7 | J14: 22 | K14: 0.328564
A15: 8 | B15: 8 | C15: 16 | D15: 34 | E15: 39 | F15: 50 | G15: 31.644607 | H15: 1.245850669 | I15: 8 | J15: 32 | K15: -0.355393
A16: 9 | B16: 8 | C16: 16 | D16: 39 | E16: 54 | F16: 50 | G16: 44.348302 | H16: 1.745996142 | I16: 9 | J16: 44 | K16: 0.348302
A17: 10 | B17: 8 | C17: 16 | D17: 40 | E17: 64 | F17: 50 | G17: 52.817432 | H17: 2.079426457 | I17: 10 | J17: 53 | K17: -0.182568
A18: 11 | B18: 8 | C18: 16 | D18: 24 | E18: 17 | F18: 65 | G18: 14.0052 | H18: 0.5513858268 | I18: 11 | J18: 14 | K18: 0.0052
A19: 12 | B19: 8 | C19: 16 | D19: 25 | E19: 26 | F19: 65 | G19: 22.0206 | H19: 0.8669527559 | I19: 12 | J19: 22 | K19: 0.0206
A20: 13 | B20: 8 | C20: 16 | D20: 26 | E20: 37 | F20: 65 | G20: 31.8172 | H20: 1.252645669 | I20: 13 | J20: 32 | K20: -0.1828
A21: 14 | B21: 8 | C21: 16 | D21: 29 | E21: 51 | F21: 65 | G21: 44.2856 | H21: 1.743527559 | I21: 14 | J21: 44 | K21: 0.2856
A22: 15 | B22: 8 | C22: 16 | D22: 31 | E22: 64 | F22: 65 | G22: 55.8634 | H22: 2.199346457 | I22: 15 | J22: 56 | K22: -0.1366
A23: 16 | B23: 8 | C23: 16 | D23: 19 | E23: 16 | F23: 80 | G23: 14.11876143 | H23: 0.5558567494 | I23: 16 | J23: 14 | K23: 0.1187614336
A24: 17 | B24: 8 | C24: 16 | D24: 20 | E24: 24 | F24: 80 | G24: 21.68366596 | H24: 0.8536876362 | I24: 17 | J24: 22 | K24: -0.3163340416
A25: 18 | B25: 8 | C25: 16 | D25: 22 | E25: 36 | F25: 80 | G25: 32.35561513 | H25: 1.273843115 | I25: 18 | J25: 32 | K25: 0.3556151296
A26: 19 | B26: 8 | C26: 16 | D26: 25 | E26: 49 | F26: 80 | G26: 43.79307714 | H26: 1.724136895 | I26: 19 | J26: 44 | K26: -0.2069228591
A27: 20 | B27: 8 | C27: 16 | D27: 27 | E27: 62 | F27: 80 | G27: 56.04881102 | H27: 2.206646103 | I27: 20 | J27: 56 | K27: 0.0488110248
A28: 21 | B28: 8 | C28: 16 | D28: 16 | E28: 15 | F28: 100 | G28: 14.01892 | H28: 0.5519259843 | I28: 21 | J28: 14 | K28: 0.01892
A29: 22 | B29: 8 | C29: 16 | D29: 17 | E29: 24 | F29: 100 | G29: 22.274872 | H29: 0.8769634646 | I29: 22 | J29: 22 | K29: 0.274872
A30: 23 | B30: 8 | C30: 16 | D30: 18 | E30: 34 | F30: 100 | G30: 31.448152 | H30: 1.23811622 | I30: 23 | J30: 32 | K30: -0.551848
A31: 24 | B31: 8 | C31: 16 | D31: 20 | E31: 48 | F31: 100 | G31: 44.290744 | H31: 1.743730079 | I31: 24 | J31: 44 | K31: 0.290744
A32: 25 | B32: 8 | C32: 16 | D32: 23 | E32: 64 | F32: 100 | G32: 58.967992 | H32: 2.321574488 | I32: 25 | J32: 59 | K32: -0.032008
A33: 26 | B33: 8 | C33: 16 | D33: 13 | E33: 15 | F33: 120 | G33: 15 | H33: 0.5905511811 | I33: 26 | J33: 14 | K33: 1
A34: 27 | B34: 8 | C34: 16 | D34: 14 | E34: 22 | F34: 120 | G34: 22 | H34: 0.8661417323 | I34: 27 | J34: 22 | K34: 0
A35: 28 | B35: 8 | C35: 16 | D35: 15 | E35: 33 | F35: 120 | G35: 33 | H35: 1.299212598 | I35: 28 | J35: 32 | K35: 1
A36: 29 | B36: 8 | C36: 16 | D36: 17 | E36: 46 | F36: 120 | G36: 44.0003424 | H36: 1.732296945 | I36: 29 | J36: 44 | K36: 0.0003424
A37: 30 | B37: 8 | C37: 16 | D37: 19 | E37: 63 | F37: 120 | G37: 59 | H37: 2.322834646 | I37: 30 | J37: 59 | K37: 0
A38: 31 | B38: 8 | C38: 16 | D38: 10 | E38: 13 | F38: 160 | G38: 13 | H38: 0.5118110236 | I38: 31 | J38: 14 | K38: -1
A39: 32 | B39: 8 | C39: 16 | D39: 10 | E39: 21 | F39: 160 | G39: 21 | H39: 0.8267716535 | I39: 32 | J39: 22 | K39: -1
A40: 33 | B40: 8 | C40: 16 | D40: 12 | E40: 33 | F40: 160 | G40: 33 | H40: 1.299212598 | I40: 33 | J40: 32 | K40: 1
A41: 34 | B41: 8 | C41: 16 | D41: 13 | E41: 46 | F41: 160 | G41: 44.0003968 | H41: 1.732299087 | I41: 34 | J41: 44 | K41: 0.0003968
A42: 35 | B42: 8 | C42: 16 | D42: 14 | E42: 59 | F42: 160 | G42: 59 | H42: 2.322834646 | I42: 35 | J42: 59 | K42: 0
A43: 36 | B43: 8 | C43: 16 | D43: 9 | E43: 12 | F43: 200 | G43: 13 | H43: 0.5118110236 | I43: 36 | J43: 14 | K43: -1
A44: 37 | B44: 8 | C44: 16 | D44: 9 | E44: 20 | F44: 200 | G44: 21 | H44: 0.8267716535 | I44: 37 | J44: 22 | K44: -1
A45: 38 | B45: 8 | C45: 16 | D45: 10 | E45: 31 | F45: 200 | G45: 32 | H45: 1.25984252 | I45: 38 | J45: 32 | K45: 0
A46: 39 | B46: 8 | C46: 16 | D46: 11 | E46: 45 | F46: 200 | G46: 44.0004 | H46: 1.732299213 | I46: 39 | J46: 44 | K46: 0.0004
A47: 40 | B47: 8 | C47: 16 | D47: 12 | E47: 58 | F47: 200 | G47: 59 | H47: 2.322834646 | I47: 40 | J47: 59 | K47: 0
A48: 41 | B48: 8 | C48: 16 | D48: 8 | E48: 13 | F48: 240 | G48: 13 | H48: 0.5118110236 | I48: 41 | J48: 14 | K48: -1
A49: 42 | B49: 8 | C49: 16 | D49: 9 | E49: 21 | F49: 240 | G49: 21 | H49: 0.8267716535 | I49: 42 | J49: 22 | K49: -1
A50: 43 | B50: 8 | C50: 16 | D50: 9 | E50: 32 | F50: 240 | G50: 32 | H50: 1.25984252 | I50: 43 | J50: 32 | K50: 0
A51: 44 | B51: 8 | C51: 16 | D51: 10 | E51: 44 | F51: 240 | G51: 44.0003392 | H51: 1.732296819 | I51: 44 | J51: 44 | K51: 0.0003392
A52: 45 | B52: 8 | C52: 16 | D52: 10 | E52: 57 | F52: 240 | G52: 59 | H52: 2.322834646 | I52: 45 | J52: 59 | K52: 0
J54: ± 1 mm | K54: 10
A55: Case C d2/d1 ˂ 2.1 and 20 mm ≤ d2 ≤ 32 mm
A56: Column1 | B56: d1 | C56: d2 | D56: dm | E56: cm | F56: a2 | G56: Cr | H56: Cri | I56: Column2 | J56: Cr meas. | K56: Cr Diff.
A57: Cases | B57: mm | C57: mm | D57: mm | E57: mm | F57: mm | G57: mm | H57: inch | I57: Cases
A58: 1 | B58: 16 | C58: 26 | D58: 40 | E58: 18 | F58: 26 | G58: 16 | H58: 0.6299212598 | I58: 1 | J58: 16 | K58: =G58-J58 -> 0
A59: =A58+1 -> 2 | B59: 16 | C59: 26 | D59: 40 | E59: 26 | F59: 26 | G59: 22.06528121 | H59: 0.8687118588 | I59: =I58+1 -> 2 | J59: 22 | K59: =G59-J59 -> 0.0652812136
A60: =A59+1 -> 3 | B60: 16 | C60: 26 | D60: 40 | E60: 36 | F60: 26 | G60: 31.96777587 | H60: 1.258573853 | I60: =I59+1 -> 3 | J60: 32 | K60: -0.0322241256
A61: 4 | B61: 16 | C61: 26 | D61: 40 | E61: 48 | F61: 26 | G61: 43.90196497 | H61: 1.728423818 | I61: 4 | J61: 44 | K61: -0.098035028
A62: 5 | B62: 16 | C62: 26 | D62: 40 | E62: 62 | F62: 26 | G62: 58.06677499 | H62: 2.286093504 | I62: 5 | J62: 58 | K62: 0.0667749904
A63: 6 | B63: 16 | C63: 26 | D63: 36 | E63: 18 | F63: 50 | G63: 16 | H63: 0.6299212598 | I63: 6 | J63: 16 | K63: 0
A64: 7 | B64: 16 | C64: 26 | D64: 40 | E64: 25 | F64: 50 | G64: 21.6746125 | H64: 0.8533312008 | I64: 7 | J64: 22 | K64: -0.3253875
A65: 8 | B65: 16 | C65: 26 | D65: 40 | E65: 37 | F65: 50 | G65: 32.1545475 | H65: 1.265927067 | I65: 8 | J65: 32 | K65: 0.1545475
A66: 9 | B66: 16 | C66: 26 | D66: 40 | E66: 49 | F66: 50 | G66: 44.1472375 | H66: 1.738080217 | I66: 9 | J66: 44 | K66: 0.1472375
A67: 10 | B67: 16 | C67: 26 | D67: 40 | E67: 63 | F67: 50 | G67: 57.612825 | H67: 2.268221457 | I67: 10 | J67: 58 | K67: -0.387175
A68: 11 | B68: 16 | C68: 26 | D68: 31 | E68: 18 | F68: 65 | G68: 16 | H68: 0.6299212598 | I68: 11 | J68: 16 | K68: 0
A69: 12 | B69: 16 | C69: 26 | D69: 33 | E69: 25 | F69: 65 | G69: 22.33796159 | H69: 0.8794473066 | I69: 12 | J69: 22 | K69: 0.3379615875
A70: 13 | B70: 16 | C70: 26 | D70: 38 | E70: 36 | F70: 65 | G70: 31.86376591 | H70: 1.254478973 | I70: 13 | J70: 32 | K70: -0.1362340875
A71: 14 | B71: 16 | C71: 26 | D71: 40 | E71: 49 | F71: 65 | G71: 44.28209856 | H71: 1.743389707 | I71: 14 | J71: 44 | K71: 0.2820985625
A72: 15 | B72: 16 | C72: 26 | D72: 40 | E72: 64 | F72: 65 | G72: 58.51656385 | H72: 2.303801726 | I72: 15 | J72: 58 | K72: 0.51656385
A73: 16 | B73: 16 | C73: 26 | D73: 28 | E73: 17 | F73: 80 | G73: 17 | H73: 0.6692913386 | I73: 16 | J73: 16 | K73: 1
A74: 17 | B74: 16 | C74: 26 | D74: 29 | E74: 24 | F74: 80 | G74: 22.0463712 | H74: 0.8679673701 | I74: 17 | J74: 22 | K74: 0.0463712
A75: 18 | B75: 16 | C75: 26 | D75: 31 | E75: 35 | F75: 80 | G75: 31.9379008 | H75: 1.257397669 | I75: 18 | J75: 32 | K75: -0.0620992
A76: 19 | B76: 16 | C76: 26 | D76: 34 | E76: 48 | F76: 80 | G76: 43.72668 | H76: 1.721522835 | I76: 19 | J76: 44 | K76: -0.27332
A77: 20 | B77: 16 | C77: 26 | D77: 40 | E77: 65 | F77: 80 | G77: 59.8817408 | H77: 2.35754885 | I77: 20 | J77: 60 | K77: -0.1182592
A78: 21 | B78: 16 | C78: 26 | D78: 23 | E78: 14 | F78: 100 | G78: 14 | H78: 0.5511811024 | I78: 21 | J78: 13 | K78: 1
A79: 22 | B79: 16 | C79: 26 | D79: 25 | E79: 23 | F79: 100 | G79: 21.8129 | H79: 0.8587755906 | I79: 22 | J79: 22 | K79: -0.1871
A80: 23 | B80: 16 | C80: 26 | D80: 27 | E80: 34 | F80: 100 | G80: 32.11442 | H80: 1.264347244 | I80: 23 | J80: 32 | K80: 0.11442
A81: 24 | B81: 16 | C81: 26 | D81: 30 | E81: 47 | F81: 100 | G81: 43.5753 | H81: 1.715562992 | I81: 24 | J81: 44 | K81: -0.4247
A82: 25 | B82: 16 | C82: 26 | D82: 33 | E82: 64 | F82: 100 | G82: 59.8509 | H82: 2.356334646 | I82: 25 | J82: 60 | K82: -0.1491
A83: 26 | B83: 16 | C83: 26 | D83: 21 | E83: 13 | F83: 120 | G83: 13 | H83: 0.5118110236 | I83: 26 | J83: 13 | K83: 0
A84: 27 | B84: 16 | C84: 26 | D84: 22 | E84: 23 | F84: 120 | G84: 22.0640688 | H84: 0.868664126 | I84: 27 | J84: 22 | K84: 0.0640688
A85: 28 | B85: 16 | C85: 26 | D85: 24 | E85: 34 | F85: 120 | G85: 31.9637392 | H85: 1.258414929 | I85: 28 | J85: 32 | K85: -0.0362608
A86: 29 | B86: 16 | C86: 26 | D86: 27 | E86: 47 | F86: 120 | G86: 44.432272 | H86: 1.749302047 | I86: 29 | J86: 44 | K86: 0.432272
A87: 30 | B87: 16 | C87: 26 | D87: 29 | E87: 64 | F87: 120 | G87: 61.0751072 | H87: 2.40453178 | I87: 30 | J87: 61 | K87: 0.0751072
A88: 31 | B88: 16 | C88: 26 | D88: 18 | E88: 11 | F88: 160 | G88: 11 | H88: 0.4330708661 | I88: 31 | J88: 11 | K88: 0
A89: 32 | B89: 16 | C89: 26 | D89: 19 | E89: 22 | F89: 160 | G89: 22 | H89: 0.8661417323 | I89: 32 | J89: 22 | K89: 0
A90: 33 | B90: 16 | C90: 26 | D90: 20 | E90: 33 | F90: 160 | G90: 33 | H90: 1.299212598 | I90: 33 | J90: 32 | K90: 1
A91: 34 | B91: 16 | C91: 26 | D91: 22 | E91: 46 | F91: 160 | G91: 43.931816 | H91: 1.729599055 | I91: 34 | J91: 44 | K91: -0.068184
A92: 35 | B92: 16 | C92: 26 | D92: 24 | E92: 62 | F92: 160 | G92: 60.9965824 | H92: 2.401440252 | I92: 35 | J92: 61 | K92: -0.0034176
A93: 36 | B93: 16 | C93: 26 | D93: 16 | E93: 10 | F93: 200 | G93: 10 | H93: 0.3937007874 | I93: 36 | J93: 11 | K93: -1
A94: 37 | B94: 16 | C94: 26 | D94: 16 | E94: 22 | F94: 200 | G94: 22 | H94: 0.8661417323 | I94: 37 | J94: 22 | K94: 0
A95: 38 | B95: 16 | C95: 26 | D95: 18 | E95: 32 | F95: 200 | G95: 32 | H95: 1.25984252 | I95: 38 | J95: 32 | K95: 0
A96: 39 | B96: 16 | C96: 26 | D96: 19 | E96: 44 | F96: 200 | G96: 44 | H96: 1.732283465 | I96: 39 | J96: 44 | K96: 0
A97: 40 | B97: 16 | C97: 26 | D97: 20 | E97: 62 | F97: 200 | G97: 62 | H97: 2.440944882 | I97: 40 | J97: 61 | K97: 1
A98: 41 | B98: 16 | C98: 26 | D98: 16 | E98: 10 | F98: 240 | G98: 10 | H98: 0.3937007874 | I98: 41 | J98: 11 | K98: -1
A99: 42 | B99: 16 | C99: 26 | D99: 17 | E99: 21 | F99: 240 | G99: 21 | H99: 0.8267716535 | I99: 42 | J99: 22 | K99: -1
A100: 43 | B100: 16 | C100: 26 | D100: 17 | E100: 31 | F100: 240 | G100: 31 | H100: 1.220472441 | I100: 43 | J100: 32 | K100: -1
A101: 44 | B101: 16 | C101: 26 | D101: 18 | E101: 44 | F101: 240 | G101: 44 | H101: 1.732283465 | I101: 44 | J101: 44 | K101: 0
A102: 45 | B102: 16 | C102: 26 | D102: 19 | E102: 61 | F102: 240 | G102: 61 | H102: 2.401574803 | I102: 45 | J102: 61 | K102: 0
J104: ± 1 mm | K104: 9
A105: Case D 2.1 ≤ d2/d1 ≤ 2.4 and d2 ≤ 32
A106: Column1 | B106: d1 | C106: d2 | D106: dm | E106: cm | F106: a2 | G106: Cr | H106: Cri | I106: Column2 | J106: Cr meas. | K106: Cr Diff.
A107: Cases | B107: mm | C107: mm | D107: mm | E107: mm | F107: mm | G107: mm | H107: inch | I107: Cases
A108: 1 | B108: 12 | C108: 26 | D108: 40 | E108: 18 | F108: 26 | G108: 14.88538135 | H108: 0.5860386358 | I108: 1 | J108: 15 | K108: =G108-J108 -> -0.1146186512
A109: =A108+1 -> 2 | B109: 12 | C109: 26 | D109: 40 | E109: 26 | F109: 26 | G109: 22.3437336 | H109: 0.8796745511 | I109: =I108+1 -> 2 | J109: 22 | K109: =G109-J109 -> 0.3437335984
A110: =A109+1 -> 3 | B110: 12 | C110: 26 | D110: 40 | E110: 36 | F110: 26 | G110: 31.61722647 | H110: 1.244772696 | I110: =I109+1 -> 3 | J110: 32 | K110: -0.3827735296
A111: 4 | B111: 12 | C111: 26 | D111: 40 | E111: 49 | F111: 26 | G111: 44.21094251 | H111: 1.740588288 | I111: 4 | J111: 44 | K111: 0.2109425066
A112: 5 | B112: 12 | C112: 26 | D112: 40 | E112: 60 | F112: 26 | G112: 55.9430464 | H112: 2.202482142 | I112: 5 | J112: 56 | K112: -0.0569536
A113: 6 | B113: 12 | C113: 26 | D113: 40 | E113: 19 | F113: 50 | G113: 15.03470431 | H113: 0.5919174927 | I113: 6 | J113: 15 | K113: 0.0347043142
A114: 7 | B114: 12 | C114: 26 | D114: 40 | E114: 27 | F114: 50 | G114: 21.89986185 | H114: 0.8621992853 | I114: 7 | J114: 22 | K114: -0.1001381546
A115: 8 | B115: 12 | C115: 26 | D115: 40 | E115: 38 | F115: 50 | G115: 32.11736591 | H115: 1.264463225 | I115: 8 | J115: 32 | K115: 0.1173659136
A116: 9 | B116: 12 | C116: 26 | D116: 40 | E116: 50 | F116: 50 | G116: 43.93085 | H116: 1.729561024 | I116: 9 | J116: 44 | K116: -0.06915
A117: 10 | B117: 12 | C117: 26 | D117: 40 | E117: 62 | F117: 50 | G117: 56.01612545 | H117: 2.20535927 | I117: 10 | J117: 56 | K117: 0.0161254464
A118: 11 | B118: 12 | C118: 26 | D118: 27 | E118: 18 | F118: 80 | G118: 15.15167126 | H118: 0.5965224904 | I118: 11 | J118: 15 | K118: 0.1516712552
A119: 12 | B119: 12 | C119: 26 | D119: 28 | E119: 24 | F119: 80 | G119: 21.67945745 | H119: 0.8535219467 | I119: 12 | J119: 22 | K119: -0.3205425536
A120: 13 | B120: 12 | C120: 26 | D120: 30 | E120: 36 | F120: 80 | G120: 32.28435772 | H120: 1.271037706 | I120: 13 | J120: 32 | K120: 0.2843577216
A121: 14 | B121: 12 | C121: 26 | D121: 34 | E121: 50 | F121: 80 | G121: 43.8530625 | H121: 1.726498524 | I121: 14 | J121: 44 | K121: -0.1469375
A122: 15 | B122: 12 | C122: 26 | D122: 40 | E122: 64 | F122: 80 | G122: 59.0337866 | H122: 2.324164827 | I122: 15 | J122: 59 | K122: 0.0337865984
A123: 16 | B123: 12 | C123: 26 | D123: 23 | E123: 18 | F123: 100 | G123: 15.10902045 | H123: 0.5948433247 | I123: 16 | J123: 15 | K123: 0.109020448
A124: 17 | B124: 12 | C124: 26 | D124: 24 | E124: 25 | F124: 100 | G124: 21.72637813 | H124: 0.8553692175 | I124: 17 | J124: 22 | K124: -0.273621875
A125: 18 | B125: 12 | C125: 26 | D125: 26 | E125: 36 | F125: 100 | G125: 32.2845663 | H125: 1.271045917 | I125: 18 | J125: 32 | K125: 0.284566304
A126: 19 | B126: 12 | C126: 26 | D126: 28 | E126: 48 | F126: 100 | G126: 43.85746989 | H126: 1.726672043 | I126: 19 | J126: 44 | K126: -0.142530112
A127: 20 | B127: 12 | C127: 26 | D127: 31 | E127: 64 | F127: 100 | G127: 59.02378746 | H127: 2.32377116 | I127: 20 | J127: 59 | K127: 0.023787456
A128: 21 | B128: 12 | C128: 26 | D128: 18 | E128: 16 | F128: 120 | G128: 14.97749015 | H128: 0.5896649666 | I128: 21 | J128: 15 | K128: -0.0225098496
A129: 22 | B129: 12 | C129: 26 | D129: 19 | E129: 24 | F129: 120 | G129: 22.06108534 | H129: 0.8685466668 | I129: 22 | J129: 22 | K129: 0.0610853376
A130: 23 | B130: 12 | C130: 26 | D130: 21 | E130: 35 | F130: 120 | G130: 31.93389159 | H130: 1.257239826 | I130: 23 | J130: 32 | K130: -0.0661084125
A131: 24 | B131: 12 | C131: 26 | D131: 24 | E131: 48 | F131: 120 | G131: 44.03217134 | H131: 1.733550053 | I131: 24 | J131: 44 | K131: 0.0321713408
A132: 25 | B132: 12 | C132: 26 | D132: 27 | E132: 64 | F132: 120 | G132: 59.99389571 | H132: 2.361964398 | I132: 25 | J132: 60 | K132: -0.0061042944
A133: 26 | B133: 12 | C133: 26 | D133: 14 | E133: 15 | F133: 160 | G133: 15 | H133: 0.5905511811 | I133: 26 | J133: 15 | K133: 0
A134: 27 | B134: 12 | C134: 26 | D134: 16 | E134: 23 | F134: 160 | G134: 23 | H134: 0.905511811 | I134: 27 | J134: 22 | K134: 1
A135: 28 | B135: 12 | C135: 26 | D135: 17 | E135: 33 | F135: 160 | G135: 31.9999791 | H135: 1.259841697 | I135: 28 | J135: 32 | K135: -2.09e-05
A136: 29 | B136: 12 | C136: 26 | D136: 19 | E136: 47 | F136: 160 | G136: 43.9999671 | H136: 1.732282169 | I136: 29 | J136: 44 | K136: -3.29e-05
A137: 30 | B137: 12 | C137: 26 | D137: 21 | E137: 63 | F137: 160 | G137: 59.9999511 | H137: 2.362202799 | I137: 30 | J137: 60 | K137: -4.89e-05
A138: 31 | B138: 12 | C138: 26 | D138: 13 | E138: 16 | F138: 200 | G138: 16 | H138: 0.6299212598 | I138: 31 | J138: 15 | K138: 1
A139: 32 | B139: 12 | C139: 26 | D139: 14 | E139: 22 | F139: 200 | G139: 22 | H139: 0.8661417323 | I139: 32 | J139: 22 | K139: 0
A140: 33 | B140: 12 | C140: 26 | D140: 15 | E140: 33 | F140: 200 | G140: 33 | H140: 1.299212598 | I140: 33 | J140: 32 | K140: 1
A141: 34 | B141: 12 | C141: 26 | D141: 16 | E141: 45 | F141: 200 | G141: 45 | H141: 1.771653543 | I141: 34 | J141: 44 | K141: 1
A142: 35 | B142: 12 | C142: 26 | D142: 18 | E142: 63 | F142: 200 | G142: 61 | H142: 2.401574803 | I142: 35 | J142: 60 | K142: 1
A143: 36 | B143: 12 | C143: 26 | D143: 13 | E143: 16 | F143: 240 | G143: 16 | H143: 0.6299212598 | I143: 36 | J143: 15 | K143: 1
A144: 37 | B144: 12 | C144: 26 | D144: 14 | E144: 22 | F144: 240 | G144: 22 | H144: 0.8661417323 | I144: 37 | J144: 22 | K144: 0
A145: 38 | B145: 12 | C145: 26 | D145: 13 | E145: 32 | F145: 240 | G145: 32 | H145: 1.25984252 | I145: 38 | J145: 32 | K145: 0
A146: 39 | B146: 12 | C146: 26 | D146: 15 | E146: 45 | F146: 240 | G146: 45 | H146: 1.771653543 | I146: 39 | J146: 44 | K146: 1
A147: 40 | B147: 12 | C147: 26 | D147: 16 | E147: 63 | F147: 240 | G147: 61 | H147: 2.401574803 | I147: 40 | J147: 61 | K147: 0
J149: ± 1 mm | K149: 7
